[Event "Elegant 1st Division League 2024"]
[Site "Dhaka"]
[Date "2024.07.15"]
[Round "5.12"]
[White "Md Nurul Islam, Mahin"]
[Black "Md, Azmaeen Parvez Sayor"]
[Result "0-1"]
[Annotator "RC"]
[ECO "B42"]
[WhiteElo "1833"]
[BlackElo "1969"]
[PlyCount "90"]
[EventDate "2024.07.10"]
[EventType "team-tourn"]
[EventCountry "BAN"]
[SourceTitle "playchess.com"]
[Source "ChessBase"]
[SourceQuality "1"]
[TimeControl "5400+30"]

1. e4 {[%emt 0:01:40]} c5 {[%emt 0:00:42]} 2. Nf3 {[%emt 0:05:04]} e6 {[%emt 0:00:07]} 3. d4 {[%emt 0:01:59]} cxd4 {[%emt 0:00:14]} 4. Nxd4 {[%emt 0:00:11]} Nf6 {[%emt 0:00:06]} 5. Bd3 {[%emt 0:00:54]} a6 {[%emt 0:01:10]} 6. O-O {[%emt 0:00:20]} d6 {[%emt 0:00:17]} 7. Nc3 {[%emt 0:00:18]} Nbd7 {[%emt 0:00:12]} 8. Nb3 {[%emt 0:02:44]} Be7 {[%emt 0:00:56]} 9. Be3 {[%emt 0:00:14]} b5 {[%emt 0:00:12]} 10. a3 {[%emt 0:00:14]} Bb7 {[%emt 0:00:11]} 11. Qe2 {[%emt 0:00:11]} Ne5 {[%emt 0:01:03]} 12. f3 {[%emt 0:00:49]} O-O {[%emt 0:00:21]} 13. Rad1 {[%emt 0:00:10]} Qc7 {[%emt 0:00:29]} 14. Qf2 {[%emt 0:01:43]} Nfd7 {[%emt 0:01:32]} 15. Rd2 {[%emt 0:03:50]} Nxd3 {[%emt 0:03:25]} 16. Rxd3 {[%emt 0:01:41]} Ne5 {[%emt 0:00:36]} 17. Rdd1 {[%emt 0:00:17]} Nc4 {[%emt 0:00:19]} 18. Bc1 {[%emt 0:00:14]} Bf6 {[%emt 0:01:53]} 19. Rd3 {[%emt 0:02:32]} Rfd8 {[%emt 0:00:54]} 20. Rfd1 {[%emt 0:04:43]} Bc6 {[%emt 0:03:27]} 21. Nd2 {[%emt 0:01:23]} Ne5 {[%emt 0:00:34]} 22. Re3 {[%emt 0:00:10]} Nd7 {[%emt 0:00:35]} 23. Ndb1 {[%emt 0:02:00]} a5 {[%emt 0:00:46]} 24. Re2 {[%emt 0:07:02]} Nb6 {[%emt 0:02:20]} 25. b3 {[%emt 0:01:52]} Be8 {[%emt 0:03:22]} 26. Be3 {[%emt 0:10:31]} Rdb8 {[%emt 0:02:51]} 27. Na2 {[%emt 0:03:16]} Be7 {[%emt 0:02:04]} 28. Red2 {[%emt 0:00:34]} d5 {[%emt 0:01:23]} 29. e5 {[%emt 0:06:56]} Nd7 {[%emt 0:00:50]} 30. f4 {[%emt 0:06:07]} Nc5 {[%emt 0:00:29]} 31. Qf3 {[%emt 0:02:38]} Ne4 {[%emt 0:00:30]} 32. Re2 {[%emt 0:00:43]} f5 {[%emt 0:01:34]} 33. g4 {[%emt 0:00:38]} Bg6 {[%emt 0:00:43]} 34. Rg2 {[%emt 0:04:31]} Rf8 {[%emt 0:00:43]} 35. h3 {[%emt 0:02:58]} Rf7 {[%emt 0:01:13]} 36. Qe2 {[%emt 0:01:27]} Bc5 {[%emt 0:00:36]} 37. Kh2 {[%emt 0:00:50]} Raf8 {[%emt 0:02:34]} 38. g5 {[%emt 0:01:45]} Rd8 {[%emt 0:06:19]} 39. Rd3 {[%emt 0:15:30]} Be7 {[%emt 0:02:40]} 40. h4 {[%emt 0:00:46]} Rff8 {[%emt 0:00:29]} 41. Nbc3 {[%emt 0:01:36]} Be8 {[%emt 0:00:57]} 42. Nxe4 {[%emt 0:06:30]} fxe4 {[%emt 0:01:17]} 43. Rc3 {[%emt 0:00:59]} Qb7 {[%emt 0:00:32]} 44. Bc5 {[%emt 0:00:48]} Bxc5 {[%emt 0:00:37]} 45. Rxc5 {[%emt 0:01:06]} Rxf4 {[%emt 0:58:56]} 0-1

[Event "Elegant 1st Division League 2024"]
[Site "Dhaka"]
[Date "2024.07.15"]
[Round "5.14"]
[White "Md, Sariatullah"]
[Black "Soumyajit Das"]
[Result "1/2-1/2"]
[Annotator "RC"]
[ECO "A88"]
[WhiteElo "2005"]
[BlackElo "1850"]
[PlyCount "42"]
[EventDate "2024.07.10"]
[EventType "team-tourn"]
[EventCountry "BAN"]
[SourceTitle "playchess.com"]
[Source "ChessBase"]
[SourceQuality "1"]
[TimeControl "5400+30"]

1. c4 {[%emt 0:01:14]} f5 {[%emt 0:06:54]} 2. g3 {[%emt 0:00:12]} Nf6 {[%emt 0:00:09]} 3. Bg2 {[%emt 0:00:05]} g6 {[%emt 0:00:13]} 4. Nc3 {[%emt 0:00:18]} Bg7 {[%emt 0:00:10]} 5. Nf3 {[%emt 0:00:11]} O-O {[%emt 0:00:32]} 6. O-O {[%emt 0:01:26]} d6 {[%emt 0:00:37]} 7. d4 {[%emt 0:00:06]} c6 {[%emt 0:00:22]} 8. Rb1 {[%emt 0:04:02]} a5 {[%emt 0:22:20]} 9. a3 {[%emt 0:02:16]} Ne4 {[%emt 1:03:43]} 10. Qc2 {[%emt 0:02:34]} Nxc3 {[%emt 0:00:30]} 11. bxc3 {[%emt 0:01:52]} e5 {[%emt 0:00:00]} 12. Rd1 {[%emt 0:04:39]} Qe8 {[%emt 0:00:00]} 13. a4 {[%emt 0:06:10]} h6 {[%emt 0:00:00]} 14. Ba3 {[%emt 0:01:01]} e4 {[%emt 0:00:00]} 15. Ne1 {[%emt 0:00:09]} Rf6 {[%emt 0:00:00]} 16. e3 {[%emt 0:01:40]} Nd7 {[%emt 0:00:00]} 17. Qd2 {[%emt 0:03:06]} Rb8 {[%emt 0:00:00]} 18. f3 {[%emt 0:00:42]} d5 {[%emt 0:00:00]} 19. cxd5 {[%emt 0:00:41]} cxd5 {[%emt 0:00:00]} 20. Bf1 {[%emt 0:00:44]} Nb6 {[%emt 0:00:00]} 21. c4 {[%emt 0:07:31]} Qxa4 {[%emt 0:00:00]} 1/2-1/2

[Event "Elegant 1st Division League 2024"]
[Site "Dhaka"]
[Date "2024.07.15"]
[Round "5.16"]
[White "Noshin, Anjum"]
[Black "Saparya Ghosh"]
[Result "1/2-1/2"]
[Annotator "RC"]
[ECO "B33"]
[WhiteElo "2056"]
[BlackElo "1833"]
[PlyCount "78"]
[EventDate "2024.07.10"]
[EventType "team-tourn"]
[EventCountry "BAN"]
[SourceTitle "playchess.com"]
[Source "ChessBase"]
[SourceQuality "1"]
[TimeControl "5400+30"]

1. e4 {[%emt 0:08:47]} c5 {[%emt 0:00:36]} 2. Nf3 {[%emt 0:00:13]} Nc6 {[%emt 0:00:06]} 3. d4 {[%emt 0:00:05]} cxd4 {[%emt 0:00:08]} 4. Nxd4 {[%emt 0:00:30]} Nf6 {[%emt 0:00:07]} 5. Nc3 {[%emt 0:00:07]} e5 {[%emt 0:00:06]} 6. Ndb5 {[%emt 0:00:18]} d6 {[%emt 0:00:06]} 7. Nd5 {[%emt 0:00:41]} Nxd5 {[%emt 0:00:08]} 8. exd5 {[%emt 0:00:04]} Nb8 {[%emt 0:00:12]} 9. a4 {[%emt 0:00:10]} Be7 {[%emt 0:00:09]} 10. Be2 {[%emt 0:00:21]} O-O {[%emt 0:00:20]} 11. O-O {[%emt 0:00:51]} a6 {[%emt 0:05:07]} 12. Na3 {[%emt 0:00:10]} Nd7 {[%emt 0:00:11]} 13. Nc4 {[%emt 0:01:00]} a5 {[%emt 0:02:45]} 14. Be3 {[%emt 0:05:39]} f5 {[%emt 0:05:11]} 15. f3 {[%emt 0:07:15]} Rb8 {[%emt 0:10:04]} 16. Qd2 {[%emt 0:05:02]} b6 {[%emt 0:03:37]} 17. b4 {[%emt 0:07:05]} axb4 {[%emt 1:10:07]} 18. Rfb1 {[%emt 0:06:57]} f4 {[%emt 0:00:00]} 19. Bf2 {[%emt 0:00:45]} e4 {[%emt 0:00:00]} 20. fxe4 {[%emt 0:01:26]} Ba6 {[%emt 0:00:00]} 21. Rxb4 {[%emt 0:05:27]} Bxc4 {[%emt 0:00:00]} 22. Rxc4 {[%emt 0:04:30]} Ne5 {[%emt 0:00:00]} 23. Rc3 {[%emt 0:00:19]} Qd7 {[%emt 0:00:00]} 24. Bd4 {[%emt 0:06:49]} Bf6 {[%emt 0:00:00]} 25. Rb3 {[%emt 0:03:05]} Ra8 {[%emt 0:00:48]} 26. Bb5 {[%emt 0:24:15]} Qg4 {[%emt 0:01:10]} 27. Rf1 {[%emt 0:06:19]} f3 {[%emt 0:01:48]} 28. Bxe5 {[%emt 0:04:06]} Bxe5 {[%emt 0:01:09]} 29. Rbxf3 {[%emt 0:00:26]} Rxf3 {[%emt 0:00:32]} 30. Rxf3 {[%emt 0:00:06]} Qxe4 {[%emt 0:00:03]} 31. Qd3 {[%emt 0:01:01]} Bd4+ {[%emt 0:00:36]} 32. Kh1 {[%emt 0:00:55]} Qe1+ {[%emt 0:00:49]} 33. Rf1 {[%emt 0:00:28]} Qe5 {[%emt 0:00:24]} 34. Qf5 {[%emt 0:00:59]} Qxf5 {[%emt 0:00:25]} 35. Rxf5 {[%emt 0:00:06]} Rf8 {[%emt 0:00:25]} 36. Rxf8+ {[%emt 0:01:19]} Kxf8 {[%emt 0:00:03]} 37. g3 {[%emt 0:00:43]} Kf7 {[%emt 0:00:40]} 38. Kg2 {[%emt 0:00:29]} Kf6 {[%emt 0:00:07]} 39. Kf3 {[%emt 0:00:29]} Ke5 {[%emt 0:00:22]} 1/2-1/2

[Event "Elegant 1st Division League 2024"]
[Site "Dhaka"]
[Date "2024.07.15"]
[Round "5.17"]
[White "Islam, Sheik   Khairul"]
[Black "Choudhury, Zahid"]
[Result "1/2-1/2"]
[Annotator "RC"]
[ECO "C54"]
[WhiteElo "1948"]
[BlackElo "1838"]
[PlyCount "99"]
[EventDate "2024.07.10"]
[EventType "team-tourn"]
[EventCountry "BAN"]
[SourceTitle "playchess.com"]
[Source "ChessBase"]
[SourceQuality "1"]
[TimeControl "5400+30"]

1. e4 {[%emt 0:00:29]} e5 {[%emt 0:04:35]} 2. Nf3 {[%emt 0:00:13]} Nc6 {[%emt 0:00:06]} 3. Bc4 {[%emt 0:00:12]} Bc5 {[%emt 0:00:16]} 4. c3 {[%emt 0:00:12]} Nf6 {[%emt 0:03:02]} 5. d3 {[%emt 0:08:16]} O-O {[%emt 0:00:33]} 6. O-O {[%emt 0:00:06]} d5 {[%emt 0:00:40]} 7. exd5 {[%emt 0:00:24]} Nxd5 {[%emt 0:00:15]} 8. h3 {[%emt 0:05:36]} a6 {[%emt 0:04:24]} 9. a4 {[%emt 0:02:35]} Nb6 {[%emt 0:08:14]} 10. Bb3 {[%emt 0:01:03]} Bf5 {[%emt 0:02:08]} 11. Bc2 {[%emt 0:00:05]} Qf6 {[%emt 0:06:10]} 12. Be3 {[%emt 0:01:26]} Bd6 {[%emt 0:06:30]} 13. Nbd2 {[%emt 0:00:33]} Nd5 {[%emt 0:03:21]} 14. Qe2 {[%emt 0:03:45]} Rfe8 {[%emt 0:07:00]} 15. Ne4 {[%emt 0:00:42]} Bxe4 {[%emt 0:01:34]} 16. dxe4 {[%emt 0:00:16]} Nf4 {[%emt 0:03:13]} 17. Bxf4 {[%emt 0:03:07]} Qxf4 {[%emt 0:01:42]} 18. Qd2 {[%emt 0:00:20]} Qf6 {[%emt 0:07:11]} 19. Qg5 {[%emt 0:06:24]} Qxg5 {[%emt 0:05:14]} 20. Nxg5 {[%emt 0:01:02]} h6 {[%emt 0:00:10]} 21. Nf3 {[%emt 0:00:05]} Ne7 {[%emt 0:04:50]} 22. Rfd1 {[%emt 0:00:17]} Ng6 {[%emt 0:01:11]} 23. g3 {[%emt 0:02:07]} Be7 {[%emt 0:03:45]} 24. Rd5 {[%emt 0:00:47]} Rad8 {[%emt 0:02:22]} 25. Rad1 {[%emt 0:01:02]} Bd6 {[%emt 0:02:40]} 26. Kf1 {[%emt 0:05:24]} Ne7 {[%emt 0:02:36]} 27. R5d2 {[%emt 0:04:07]} Nc6 {[%emt 0:00:16]} 28. Bb3 {[%emt 0:01:21]} Rb8 {[%emt 0:02:44]} 29. Bd5 {[%emt 0:01:19]} Ne7 {[%emt 0:00:24]} 30. Ba2 {[%emt 0:00:40]} a5 {[%emt 0:01:13]} 31. Bc4 {[%emt 0:00:33]} Rf8 {[%emt 0:01:35]} 32. h4 {[%emt 0:03:17]} Kh8 {[%emt 0:00:39]} 33. Kg2 {[%emt 0:04:18]} Kh7 {[%emt 0:16:27]} 34. h5 {[%emt 0:00:54]} g6 {[%emt 0:00:00]} 35. Rh1 {[%emt 0:00:31]} Kg7 {[%emt 0:00:00]} 36. g4 {[%emt 0:00:25]} f5 {[%emt 0:00:00]} 37. exf5 {[%emt 0:00:31]} gxf5 {[%emt 0:00:00]} 38. g5 {[%emt 0:00:57]} e4 {[%emt 0:00:00]} 39. Nd4 {[%emt 0:00:10]} hxg5 {[%emt 0:00:00]} 40. Ne6+ {[%emt 0:02:44]} Kh6 {[%emt 0:00:00]} 41. Nxf8 {[%emt 0:01:03]} Rxf8 {[%emt 0:00:00]} 42. Bd5 {[%emt 0:00:20]} b6 {[%emt 0:00:00]} 43. Bc4 {[%emt 0:00:10]} Nc6 {[%emt 0:00:00]} 44. Be2 {[%emt 0:00:35]} Rf6 {[%emt 0:00:00]} 45. Rhd1 {[%emt 0:00:18]} g4 {[%emt 0:00:00]} 46. Rh1 {[%emt 0:01:13]} Rf8 {[%emt 0:00:00]} 47. Rhd1 {[%emt 0:00:09]} Rf6 {[%emt 0:07:00]} 48. b3 {[%emt 0:42:27]} Ne5 {[%emt 0:00:30]} 49. Bc4 {[%emt 0:00:30]} f4 50. Rh1 {[%emt 0:00:30]} 1/2-1/2

[Event "Elegant 1st Division League 2024"]
[Site "Dhaka"]
[Date "2024.07.15"]
[Round "5.18"]
[White "Mirza Arifur, Rahman"]
[Black "Faisal, Hossain"]
[Result "1/2-1/2"]
[Annotator "NA RC"]
[ECO "A47"]
[WhiteElo "1823"]
[BlackElo "1872"]
[PlyCount "84"]
[EventDate "2024.07.10"]
[EventType "team-tourn"]
[EventCountry "BAN"]
[SourceTitle "playchess.com"]
[Source "ChessBase"]
[SourceQuality "1"]
[TimeControl "5400+30"]

1. d4 {[%emt 0:01:48]} Nf6 {[%emt 0:02:50]} 2. Nf3 {[%emt 0:00:18]} e6 {[%emt 0:00:30]} 3. Bg5 {[%emt 0:00:27]} Be7 {[%emt 0:00:16]} 4. e3 {[%emt 0:00:11]} c5 {[%emt 0:02:30]} 5. c3 {[%emt 0:00:11]} cxd4 {[%emt 0:01:11]} 6. exd4 {[%emt 0:00:11]} b6 {[%emt 0:00:57]} 7. Bd3 {[%emt 0:00:20]} Bb7 {[%emt 0:00:05]} 8. Nbd2 {[%emt 0:00:08]} O-O {[%emt 0:00:25]} 9. O-O {[%emt 0:00:29]} d5 {[%emt 0:01:35] A47: 1 d4 Nf6 2 Nf3 b6: Torre, London and Colle Systems.} 10. Qe2 {[%emt 0:00:09]} Nbd7 {[%emt 0:00:34]} 11. Rfe1 {[%emt 0:00:38]} Re8 {[%emt 1:25:07]} 12. Rad1 {[%emt 0:05:10]} a6 {[%emt 0:00:30]} 13. Ne5 {[%emt 0:02:10]} Nxe5 {[%emt 0:00:00]} 14. dxe5 {[%emt 0:00:13]} Nd7 {[%emt 0:00:00]} 15. Bxe7 {[%emt 0:03:30]} Qxe7 {[%emt 0:00:00]} 16. Qh5 {[%emt 0:00:19]} g6 {[%emt 0:00:00]} 17. Qh6 {[%emt 0:00:14]} Qf8 {[%emt 0:00:00]} 18. Qf4 {[%emt 0:00:50]} Rac8 {[%emt 0:00:00]} 19. Re3 {[%emt 0:00:29]} Qg7 {[%emt 0:00:00]} 20. h4 {[%emt 0:00:38]} ({Beter is} 20. Rde1 $18) 20... f6 {[%emt 0:00:00]} 21. Nf3 {[%emt 0:00:43]} f5 {[%emt 0:00:00]} 22. h5 {[%emt 0:00:46]} Nf8 {[%emt 0:00:00]} 23. h6 {[%emt 0:02:33]} Qe7 {[%emt 0:00:00]} 24. g4 {[%emt 0:01:53]} Kh8 {[%emt 0:00:00]} 25. Ng5 {[%emt 0:04:38]} Rc7 {[%emt 0:00:00]} 26. Rg3 {[%emt 0:01:39]} b5 {[%emt 0:00:00]} 27. Re1 $2 {[%emt 0:00:48]} (27. gxf5 $18 gxf5 28. Bxf5) 27... Bc8 {[%emt 0:00:00]} 28. Nf3 {[%emt 0:07:07]} fxg4 {[%emt 0:00:00]} 29. Ng5 {[%emt 0:02:54]} Nd7 {[%emt 0:00:00]} 30. Nf7+ {[%emt 0:08:02]} Kg8 {[%emt 0:00:00]} 31. Nd6 {[%emt 0:00:12]} Rf8 {[%emt 0:00:00]} 32. Qxg4 {[%emt 0:00:23]} Kh8 {[%emt 0:00:00]} 33. f4 {[%emt 0:02:30]} Nc5 {[%emt 0:00:00]} 34. Bb1 {[%emt 0:01:40]} Bb7 {[%emt 0:00:00]} 35. Kh2 {[%emt 0:01:45]} Bc6 {[%emt 0:11:30]} 36. Kh3 {[%emt 0:01:25]} (36. Rf1 $14) 36... Be8 {[%emt 0:00:00]} (36... Nb7 {deserves consideration.}) 37. Reg1 {[%emt 0:03:34]} Nb7 $15 {[%emt 0:00:00]} 38. Nxb7 {[%emt 0:25:02]} Rxb7 {[%emt 0:00:00]} 39. a3 {[%emt 0:00:28]} Rc7 {[%emt 0:00:00]} 40. Bd3 {[%emt 0:00:19]} Bf7 {[%emt 0:00:00]} 41. Kh2 {[%emt 0:24:16]} Kg8 {[%emt 0:03:00]} 42. Kh3 Be8 {[%emt 0:00:30]} 1/2-1/2

[Event "Elegant 1st Division League 2024"]
[Site "Dhaka"]
[Date "2024.07.15"]
[Round "5.19"]
[White "Asaduzzaman, Ahad"]
[Black "Salim Mohammed, Salim Al Amri"]
[Result "1/2-1/2"]
[Annotator "RC"]
[ECO "B11"]
[WhiteElo "1855"]
[BlackElo "1928"]
[PlyCount "74"]
[EventDate "2024.07.10"]
[EventType "team-tourn"]
[EventCountry "BAN"]
[SourceTitle "playchess.com"]
[Source "ChessBase"]
[SourceQuality "1"]
[TimeControl "5400+30"]

1. e4 {[%emt 0:00:30]} c6 {[%emt 0:19:37]} 2. Nc3 {[%emt 0:00:11]} e6 {[%emt 0:00:36]} 3. f4 {[%emt 0:00:31]} d5 {[%emt 0:01:41]} 4. Nf3 {[%emt 0:01:25]} g6 {[%emt 0:02:39]} 5. e5 {[%emt 1:30:23]} b5 {[%emt 0:03:09]} 6. a3 {[%emt 0:00:00]} Ne7 {[%emt 0:00:54]} 7. d4 {[%emt 0:00:00]} Nf5 {[%emt 0:02:10]} 8. Be2 {[%emt 0:00:00]} a6 {[%emt 0:01:32]} 9. O-O {[%emt 0:00:00]} c5 {[%emt 0:00:32]} 10. Kh1 {[%emt 0:00:00]} Qb6 {[%emt 0:01:52]} 11. dxc5 {[%emt 0:00:00]} Bxc5 {[%emt 0:00:48]} 12. Bd3 {[%emt 0:00:00]} Nc6 {[%emt 0:10:07]} 13. Bxf5 {[%emt 0:00:00]} gxf5 {[%emt 0:00:39]} 14. Ng5 {[%emt 0:00:00]} d4 {[%emt 0:04:16]} 15. Qh5 {[%emt 0:00:00]} Nd8 {[%emt 0:02:41]} 16. Ne2 {[%emt 0:00:00]} Bb7 {[%emt 0:01:54]} 17. Ng3 {[%emt 0:00:00]} Qc6 {[%emt 0:04:15]} 18. Nf3 {[%emt 0:00:00]} Qd7 {[%emt 0:01:25]} 19. Bd2 {[%emt 0:00:00]} Nc6 {[%emt 0:00:34]} 20. Ng5 {[%emt 0:00:00]} Nd8 {[%emt 0:07:18]} 21. b4 {[%emt 0:00:00]} Be7 {[%emt 0:01:26]} 22. Rf2 {[%emt 0:00:00]} Bxg5 {[%emt 0:31:25]} 23. Qxg5 {[%emt 0:00:00]} Qe7 {[%emt 0:00:00]} 24. Qg7 {[%emt 0:00:00]} Qf8 {[%emt 0:00:00]} 25. Qf6 {[%emt 0:00:00]} h5 {[%emt 0:00:00]} 26. Ne2 {[%emt 0:00:00]} h4 {[%emt 0:00:00]} 27. Kg1 {[%emt 0:00:00]} Rh6 {[%emt 0:00:00]} 28. Qg5 {[%emt 0:00:00]} Qh8 {[%emt 0:00:00]} 29. Ng3 {[%emt 0:00:00]} hxg3 {[%emt 0:00:00]} 30. Qxg3 {[%emt 0:00:00]} Nc6 {[%emt 0:00:00]} 31. a4 {[%emt 0:00:00]} Ke7 {[%emt 0:00:00]} 32. Qg5+ {[%emt 0:00:00]} Kd7 {[%emt 0:00:00]} 33. Qg3 {[%emt 0:00:00]} Rg8 {[%emt 0:00:00]} 34. Qa3 {[%emt 0:00:00]} Rxh2 {[%emt 0:00:00]} 35. Kf1 {[%emt 0:00:00]} Qh5 {[%emt 0:00:00]} 36. Re2 {[%emt 0:00:00]} Qh4 {[%emt 0:00:00]} 37. Rf2 {[%emt 0:00:00]} Qg4 {[%emt 0:00:00]} 1/2-1/2

[Event "Elegant 1st Division League 2024"]
[Site "Dhaka"]
[Date "2024.07.15"]
[Round "5.20"]
[White "Islam, Obaidul Shahin"]
[Black "Shejal Sahil Sanjay"]
[Result "0-1"]
[Annotator "RC"]
[ECO "B27"]
[WhiteElo "1976"]
[BlackElo "1750"]
[PlyCount "38"]
[EventDate "2024.07.10"]
[EventType "team-tourn"]
[EventCountry "BAN"]
[SourceTitle "playchess.com"]
[Source "ChessBase"]
[SourceQuality "1"]
[TimeControl "5400+30"]

1. e4 {[%emt 0:12:34]} g6 {[%emt 0:00:11]} 2. Nf3 {[%emt 0:00:49]} Bg7 {[%emt 0:00:03]} 3. Nc3 {[%emt 0:00:20]} c5 {[%emt 0:01:27]} 4. d4 {[%emt 0:04:53]} Nc6 {[%emt 0:00:03]} 5. d5 {[%emt 0:01:44]} Nd4 {[%emt 1:31:16]} 6. Be3 {[%emt 0:00:26]} e5 {[%emt 0:00:00]} 7. Bd3 {[%emt 0:03:42]} d6 {[%emt 0:00:00]} 8. Nd2 {[%emt 0:02:07]} f5 {[%emt 0:00:00]} 9. exf5 {[%emt 0:00:55]} gxf5 {[%emt 0:00:00]} 10. Qh5+ {[%emt 0:03:41]} Kf8 {[%emt 0:00:00]} 11. Ne2 {[%emt 0:11:29]} Nxe2 {[%emt 0:00:00]} 12. Bg5 {[%emt 0:02:10]} Nf4 {[%emt 0:00:00]} 13. Bxf4 {[%emt 0:00:55]} exf4 {[%emt 0:00:00]} 14. O-O {[%emt 0:01:33]} Nf6 {[%emt 0:00:00]} 15. Qh3 {[%emt 0:50:42]} Ne4 16. Rad1 Nxd2 17. Rxd2 Qg5 18. Re2 Qg4 19. Rfe1 {[%emt 0:00:00]} Bd7 {[%emt 0:00:00]} 0-1

[Event "Elegant 1st Division League 2024"]
[Site "Dhaka"]
[Date "2024.07.15"]
[Round "5.21"]
[White "Miraj Uddin, Ahmed"]
[Black "Hossain, Monir"]
[Result "1/2-1/2"]
[Annotator "RC"]
[ECO "A45"]
[WhiteElo "1827"]
[BlackElo "1972"]
[PlyCount "53"]
[EventDate "2024.07.10"]
[EventType "team-tourn"]
[EventCountry "BAN"]
[SourceTitle "playchess.com"]
[Source "ChessBase"]
[SourceQuality "1"]
[TimeControl "5400+30"]

1. d4 {[%emt 0:00:08]} Nf6 {[%emt 0:00:19]} 2. e3 {[%emt 0:00:11]} g6 {[%emt 0:00:09]} 3. f4 {[%emt 0:00:11]} Bg7 {[%emt 0:00:23]} 4. Nf3 {[%emt 0:00:08]} O-O {[%emt 0:00:15]} 5. Bd3 {[%emt 0:00:12]} d6 {[%emt 0:00:14]} 6. O-O {[%emt 0:00:12]} Nbd7 {[%emt 0:00:10]} 7. e4 {[%emt 0:00:37]} c6 {[%emt 0:00:40]} 8. c3 {[%emt 0:00:27]} Re8 {[%emt 0:00:14]} 9. e5 {[%emt 0:00:10]} Nd5 {[%emt 0:00:22]} 10. Qe2 {[%emt 0:00:21]} Nf8 {[%emt 0:00:25]} 11. a4 {[%emt 0:00:25]} Ne6 {[%emt 0:00:48]} 12. g3 {[%emt 0:00:22]} Nf8 {[%emt 0:00:37]} 13. Nbd2 {[%emt 0:00:14]} Bg4 {[%emt 0:00:11]} 14. Be4 {[%emt 0:00:23]} Nc7 {[%emt 0:00:28]} 15. Qf2 {[%emt 0:00:46]} Bh3 {[%emt 0:00:17]} 16. Re1 {[%emt 0:00:12]} d5 {[%emt 0:00:22]} 17. Bc2 {[%emt 0:00:10]} Qc8 {[%emt 0:00:19]} 18. Ng5 {[%emt 0:00:17]} Bf5 {[%emt 0:00:19]} 19. Nf1 {[%emt 0:01:23]} Bxc2 {[%emt 0:00:27]} 20. Qxc2 {[%emt 0:00:13]} Nce6 {[%emt 0:00:29]} 21. Nf3 {[%emt 0:00:35]} Nc7 {[%emt 0:00:42]} 22. Ne3 {[%emt 0:00:13]} f5 {[%emt 0:00:31]} 23. exf6 {[%emt 0:00:18]} exf6 {[%emt 0:00:25]} 24. b3 {[%emt 0:00:35]} Qd7 {[%emt 0:00:47]} 25. Ba3 {[%emt 0:00:26]} Re4 {[%emt 0:00:38]} 26. Nd2 {[%emt 0:01:43]} Ree8 {[%emt 0:02:08]} 27. Bc1 {[%emt 0:00:30]} 1/2-1/2

[Event "Elegant 1st Division League 2024"]
[Site "Dhaka"]
[Date "2024.07.15"]
[Round "5.22"]
[White "Hossain, Alamgir"]
[Black "Shatadru Shovan, Dey"]
[Result "1/2-1/2"]
[Annotator "RC"]
[ECO "C01"]
[WhiteElo "1974"]
[BlackElo "1879"]
[PlyCount "53"]
[EventDate "2024.07.10"]
[EventType "team-tourn"]
[EventCountry "BAN"]
[SourceTitle "playchess.com"]
[Source "ChessBase"]
[SourceQuality "1"]
[TimeControl "5400+30"]

1. e4 {[%emt 0:01:07]} e6 {[%emt 0:00:05]} 2. d4 {[%emt 0:00:18]} d5 {[%emt 0:00:06]} 3. exd5 {[%emt 0:01:06]} exd5 {[%emt 0:00:11]} 4. Bd3 {[%emt 0:00:16]} Bd6 {[%emt 0:00:07]} 5. h3 {[%emt 0:00:17]} Nf6 {[%emt 0:00:10]} 6. Nf3 {[%emt 0:00:23]} O-O {[%emt 0:00:06]} 7. O-O {[%emt 0:00:09]} c6 {[%emt 0:00:09]} 8. c3 {[%emt 0:00:16]} Nbd7 {[%emt 0:00:12]} 9. Nbd2 {[%emt 0:00:28]} Qc7 {[%emt 0:00:05]} 10. Re1 {[%emt 0:00:35]} Re8 {[%emt 0:00:13]} 11. Rxe8+ {[%emt 0:00:36]} Nxe8 {[%emt 0:00:08]} 12. Qc2 {[%emt 0:00:28]} Nf8 {[%emt 0:00:30]} 13. Nf1 {[%emt 0:00:17]} Bd7 {[%emt 0:00:22]} 14. Bd2 {[%emt 0:08:58]} Nf6 {[%emt 0:00:23]} 15. Re1 {[%emt 0:00:18]} Re8 {[%emt 0:00:07]} 16. Rxe8 {[%emt 0:00:07]} Nxe8 {[%emt 0:00:14]} 17. Ne3 {[%emt 0:00:37]} Qd8 {[%emt 0:01:18]} 18. Nf1 {[%emt 0:02:08]} Qc7 {[%emt 0:00:21]} 19. Qd1 {[%emt 0:00:29]} Nf6 {[%emt 0:00:34]} 20. Qc2 {[%emt 0:00:16]} a5 {[%emt 0:00:25]} 21. Bg5 {[%emt 0:00:19]} Nh5 {[%emt 0:00:48]} 22. Bf5 {[%emt 0:00:53]} h6 {[%emt 0:00:24]} 23. Bxd7 {[%emt 0:00:21]} Nxd7 {[%emt 0:00:24]} 24. Be3 {[%emt 0:00:17]} Ndf6 {[%emt 0:00:29]} 25. N1d2 {[%emt 0:00:21]} g5 {[%emt 0:01:51]} 26. Qf5 {[%emt 0:01:03]} Qe7 {[%emt 0:00:40]} 27. Kf1 {[%emt 0:01:06]} 1/2-1/2

[Event "Elegant 1st Division League 2024"]
[Site "Dhaka"]
[Date "2024.07.15"]
[Round "5.23"]
[White "S M Sharon"]
[Black "Priyanshu Barua"]
[Result "1/2-1/2"]
[Annotator "RC"]
[ECO "D02"]
[WhiteElo "2047"]
[BlackElo "1987"]
[PlyCount "59"]
[EventDate "2024.07.10"]
[EventType "team-tourn"]
[EventCountry "BAN"]
[SourceTitle "playchess.com"]
[Source "ChessBase"]
[SourceQuality "1"]
[TimeControl "5400+30"]

1. Nf3 {[%emt 0:00:27]} Nf6 {[%emt 0:02:35]} 2. d4 {[%emt 0:00:36]} d5 {[%emt 0:00:01]} 3. Bf4 {[%emt 0:01:12]} c5 {[%emt 0:00:02]} 4. c3 {[%emt 0:00:14]} Nc6 {[%emt 0:00:07]} 5. e3 {[%emt 0:00:13]} Qb6 {[%emt 0:00:45]} 6. Qb3 {[%emt 0:00:28]} c4 {[%emt 0:01:21]} 7. Qxb6 {[%emt 0:03:27]} axb6 {[%emt 0:00:03]} 8. Nbd2 {[%emt 0:00:52]} Bf5 {[%emt 0:09:19]} 9. Be2 {[%emt 0:00:54]} b5 {[%emt 0:01:03]} 10. O-O {[%emt 0:05:41]} h6 {[%emt 0:02:59]} 11. a3 {[%emt 0:03:42]} e6 {[%emt 0:02:45]} 12. Ne5 {[%emt 0:00:25]} Ne4 {[%emt 0:11:55]} 13. Nxe4 {[%emt 0:05:59]} Bxe4 {[%emt 0:00:19]} 14. Bf3 {[%emt 0:04:27]} Bh7 {[%emt 0:20:13]} 15. Nxc6 {[%emt 0:05:10]} bxc6 {[%emt 0:00:06]} 16. Rfe1 {[%emt 0:00:22]} Kd7 {[%emt 0:00:10]} 17. e4 {[%emt 0:00:30]} Be7 {[%emt 0:00:09]} 18. exd5 {[%emt 0:00:20]} cxd5 {[%emt 0:00:06]} 19. Rad1 {[%emt 0:01:50]} Ra6 {[%emt 0:02:05]} 20. Bh5 {[%emt 0:06:53]} Bg5 {[%emt 0:03:10]} 21. Be3 {[%emt 0:06:52]} Rf8 {[%emt 0:01:54]} 22. g3 {[%emt 0:00:49]} Be7 {[%emt 0:01:46]} 23. h4 {[%emt 0:01:40]} Bc2 {[%emt 0:01:12]} 24. Rc1 {[%emt 0:04:04]} Bh7 {[%emt 0:01:49]} 25. Bd1 {[%emt 0:01:22]} Rfa8 {[%emt 0:00:22]} 26. Bh5 {[%emt 0:01:42]} Rf8 {[%emt 0:01:06]} 27. Bd1 {[%emt 0:00:21]} Rfa8 {[%emt 0:00:04]} 28. Bh5 {[%emt 0:00:27]} Rf8 {[%emt 0:00:03]} 29. Bd1 {[%emt 0:00:09]} Rfa8 {[%emt 0:00:03]} 30. Bh5 {[%emt 0:44:22]} 1/2-1/2